[Event "4NCL 2022-2023"]
[Site "Daventry"]
[Date "2023.02.11"]
[Round "5.29"]
[White "Han, Yichen"]
[Black "Derakhshani, Borna"]
[Result "1-0"]
[ECO "D14"]
[WhiteElo "2399"]
[BlackElo "2380"]
[Annotator "TA"]
[PlyCount "101"]
[EventDate "2022.10.20"]
[EventType "team-tourn"]
[EventCountry "ENG"]
[SourceTitle "playchess.com"]
[Source "ChessBase"]
[SourceQuality "1"]
[TimeControl "40/6000+30:2400+30"]

{[%evp 22,101,15,25,31,16,35,8,44,34,29,29,16,-3,15,27,38,33,27,28,33,26,31,32,34,20,20,22,37,39,42,46,102,94,157,149,136,56,58,58,68,16,11,10,12,20,12,15,21,13,40,43,73,73,85,19,85,73,52,0,82,79,81,80,132,129,162,129,151,168,208,212,435,433,617,539,703,675,638,462,795,759]} 1. d4 {[%emt 0:00:03]} d5 {[%emt 0:06:55]} 2. c4 {[%emt 0:00:26]} c6 {[%emt 0:00:04]} 3. cxd5 {[%emt 0:00:26]} cxd5 {[%emt 0:00:05]} 4. Nc3 {[%emt 0:00:23]} Nf6 {[%emt 0:00:55]} 5. Bf4 {[%emt 0:00:25]} Nc6 {[%emt 0:00:18][%cal Bb8c6,Bc6a5,Ba5c4][%mdl 32]} 6. e3 {[%emt 0:00:10]} Bf5 {[%emt 0:00:16]} 7. Qb3 {[%emt 0:00:54]} Na5 {[%emt 0:02:05]} 8. Qa4+ {[%emt 0:01:09]} Bd7 {[%emt 0:00:08]} 9. Qc2 {[%emt 0:00:30]} Rc8 {[%emt 0:00:56]} 10. Nf3 {[%emt 0:01:34]} e6 {[%emt 0:01:23]} 11. Bd3 {[%emt 0:00:51]} b5 {[%emt 0:00:40]} 12. a3 {[%emt 0:00:49]} (12. Bxb5 $2 {perishes.} Bxb5 13. Ng1 Bb4 $19) 12... Nc4 {[%emt 0:00:13] D14: Slav Defence: Exchange variation with ...Bf5.} 13. Qe2 {[%emt 0:02:00]} Be7 {[%emt 0:13:52]} 14. O-O {[%emt 0:02:22]} O-O {[%emt 0:00:09] The position is equal.} 15. Ne5 {[%emt 0:06:57]} Be8 {[%emt 0:03:22]} 16. a4 {[%emt 0:07:40]} b4 {[%emt 0:13:09] [#]} 17. Na2 $146 {[%emt 0:04:36][%cal Re5c4]} (17. Nb5 {feels hotter.} a6 18. Na7 Rc7 19. Nxc4 dxc4 20. Bxc7 Qxc7 21. Bxc4 Qxa7 22. Bxa6 Qa8 23. a5) ({Predecessor:} 17. Nb5 a6 18. Na7 Rc7 19. Nxc4 dxc4 20. Bxc7 Qxc7 21. Bxc4 Qxa7 22. Bxa6 Nd5 23. Rfc1 {1-0 Prohaszka,P (2583)-Milov,L (2523) BL2-Ost 1314 2013 (7.1)}) 17... Nxe5 {[%emt 0:05:53]} 18. Bxe5 {[%emt 0:00:58]} Bxa4 {[%emt 0:11:32] [#]} 19. Nxb4 $1 {[%emt 0:03:17][%mdl 64] Discovered Attack} Bxb4 {[%emt 0:00:04]} 20. Rxa4 {[%emt 0:00:09]} a5 {[%emt 0:00:04]} 21. Raa1 {[%emt 0:03:01]} Nd7 {[%emt 0:08:41]} 22. Bg3 {[%emt 0:02:30]} ({Much worse is} 22. Qh5 g6 23. Qe2 Nxe5 24. dxe5 Qc7 $15) 22... Qb6 {[%emt 0:06:58]} 23. h3 {[%emt 0:17:23]} Nf6 {[%emt 0:01:50]} 24. Be5 {[%emt 0:02:05]} Ne4 {[%emt 0:07:38]} 25. Rfc1 {[%emt 0:04:17]} f6 {[%emt 0:04:01]} 26. Bf4 {[%emt 0:02:33]} Bd6 {[%emt 0:04:43]} (26... Nd6 $14) 27. Bxe4 {[%emt 0:04:25]} dxe4 {[%emt 0:00:20]} ({Better is} 27... Rxc1+ 28. Rxc1 Bxf4) 28. Bxd6 $16 {[%emt 0:01:16]} Qxd6 {[%emt 0:00:36]} 29. Qd2 {[%emt 0:02:40]} (29. Qb5 $16) 29... Qb4 $1 $14 {[%emt 0:01:00]} 30. Qxb4 {[%emt 0:01:57]} axb4 {[%emt 0:00:01]} 31. Rc5 {[%emt 0:01:31]} (31. g3 $14) 31... Rxc5 $11 {[%emt 0:02:42]} 32. dxc5 {[%emt 0:01:24][%mdl 4096] Endgame KR-KR} Rc8 {[%emt 0:02:52]} 33. Ra5 {[%emt 0:07:21]} Kf7 {[%emt 0:02:11]} 34. Kf1 {[%emt 0:05:05]} e5 {[%emt 0:00:18]} 35. Rb5 {[%emt 0:04:02]} Ke6 {[%emt 0:00:32]} 36. g4 {[%emt 0:06:50]} h6 {[%emt 0:03:24]} 37. h4 {[%emt 0:04:20]} g6 {[%emt 0:05:54]} 38. Rb6+ {[%emt 0:02:49]} (38. Rxb4 $16 {aiming for Rb6+.} Rxc5 39. Rb6+ Kf7 40. Rb7+ Ke8 41. b4) 38... Ke7 {[%emt 0:00:23]} (38... Kd5 $1 $11 {remains equal.}) 39. Rb7+ {[%emt 0:05:08]} Ke6 {[%emt 0:00:09]} 40. Rb6+ {[%emt 0:00:08]} (40. Rxb4 $5 {[%cal Rb4b6]} Rxc5 41. Rb6+ Kf7 42. Rb7+ Ke8 43. b4 Rc1+ 44. Kg2 $14) 40... Ke7 {[%emt 0:03:43]} 41. Rxb4 {[%emt 0:43:49] Hoping for Rb5.} Rxc5 {[%emt 0:40:05]} 42. Rxe4 {[%emt 0:00:00]} Rb5 {[%emt 0:00:00] [#]} ({Black should play} 42... h5) 43. b4 $1 $16 {[%emt 0:00:00][%cal Bb2b4,Bb4b5][%mdl 32]} Rb8 {[%emt 0:00:00]} 44. Rc4 {[%emt 0:00:00]} Kd6 {[%emt 0:00:00]} 45. Ke2 {[%emt 0:00:00]} Ra8 {[%emt 0:00:00]} 46. b5 {[%emt 0:00:00]} Kd5 {[%emt 0:00:00]} (46... Ra2+ 47. Kf3 Rb2 48. Rc6+ Ke7) 47. Rc6 $18 {[%emt 0:00:00] White is clearly winning.} Rf8 {[%emt 0:00:00]} (47... Ra4 $142 48. f3 (48. Rxf6 Rxg4 49. b6 Rxh4 $18) 48... e4 49. Rxf6 Ra2+ 50. Kf1 exf3 51. Rxg6 Rh2) 48. Kd3 {[%emt 0:00:00][%csl Gd3][%cal Re3e4]} e4+ {[%emt 0:00:00]} 49. Kc3 {[%emt 0:00:00]} g5 {[%emt 0:00:00]} 50. hxg5 {[%emt 0:00:00]} hxg5 {[%emt 0:00:00]} (50... fxg5 $142 51. Rxh6 Kc5) 51. Kb4 {[%emt 0:00:00] Weighted Error Value: White=0.14 (very precise) /Black=0.27 (precise)} 1-0

[Event "4NCL 2022-2023"]
[Site "Daventry"]
[Date "2023.02.11"]
[Round "5.30"]
[White "Yao, Lan"]
[Black "Camacho Collados, Jose"]
[Result "1/2-1/2"]
[ECO "B45"]
[WhiteElo "2279"]
[BlackElo "2406"]
[Annotator "TA"]
[PlyCount "129"]
[EventDate "2022.10.20"]
[EventType "team-tourn"]
[EventCountry "ENG"]
[SourceTitle "playchess.com"]
[Source "ChessBase"]
[SourceQuality "1"]
[TimeControl "40/6000+30:2400+30"]

{[%evp 13,129,-8,21,13,8,0,6,14,33,16,9,4,52,49,66,70,73,72,64,64,71,74,90,83,76,89,90,76,69,63,73,75,114,14,27,0,0,0,55,65,127,127,168,175,169,113,113,115,106,59,104,92,98,74,107,16,39,37,45,35,58,38,26,4,9,0,94,12,12,12,12,12,12,0,0,0,0,0,10,8,8,0,0,0,0,0,0,0,0,0,0,0,0,0,0,0,0,0,0,0,0,0,0,0,0,0,0,0,0,0,0,0,0,0,0,0,0,0]} 1. e4 {[%emt 1:41:00]} c5 {[%emt 0:00:07]} 2. Nf3 {[%emt 0:00:00]} e6 {[%emt 0:00:08]} 3. d4 {[%emt 0:00:00]} cxd4 {[%emt 0:00:06]} 4. Nxd4 {[%emt 0:00:00]} Nf6 {[%emt 0:00:04]} 5. Nc3 {[%emt 0:00:00]} Nc6 {[%emt 0:00:06]} 6. Be3 {[%emt 0:00:00]} Bb4 {[%emt 0:02:19]} 7. Bd3 {[%emt 0:00:00]} Ne5 {[%emt 0:09:52]} 8. O-O {[%emt 0:00:00] B45: Sicilian Four Knights.} O-O {[%emt 0:00:34]} 9. h3 {[%emt 0:00:00]} Nxd3 {[%emt 0:12:21]} 10. cxd3 {[%emt 0:00:00]} e5 {[%emt 0:02:08]} 11. Nde2 {[%emt 0:00:00][%cal Bd4e2,Be2g3,Bg3e4][%mdl 32]} d5 {[%emt 0:16:49] Hoping for ...d4.} 12. Bg5 {[%emt 0:00:00] [#]} Be6 $146 {[%emt 0:11:35]} (12... dxe4 $11 13. Bxf6 Qxf6) ({Predecessor:} 12... dxe4 13. dxe4 Qxd1 14. Rfxd1 Be7 15. Bxf6 Bxf6 16. Nd5 Bd8 17. Rac1 Be6 18. b3 Rc8 19. Rxc8 Bxc8 {½-½ Ljuboschiz,A (2205)-Berberich,C (2025) Leverkusen Bayer op 2nd 1997 (4)}) 13. exd5 $14 {[%emt 0:00:00]} Bxd5 {[%emt 0:01:16]} 14. Bxf6 {[%emt 0:00:00]} gxf6 {[%emt 0:00:09]} 15. Nxd5 {[%emt 0:00:00]} Qxd5 {[%emt 0:00:27]} 16. Ng3 {[%emt 0:00:00] Qg4+ would be deadly.} Kh8 {[%emt 0:05:07]} 17. Qg4 {[%emt 0:00:00]} Bc5 {[%emt 0:01:02][%cal Of8g8]} 18. Rac1 {[%emt 0:00:00]} (18. Qf5 {simplifies} Qe6 19. Qf3 Rac8 20. Rac1) 18... Rg8 {[%emt 0:11:08]} 19. Qe4 {[%emt 0:00:00]} Qxe4 {[%emt 0:18:55]} 20. Nxe4 {[%emt 0:00:00]} Bb6 {[%emt 0:02:09]} 21. Nxf6 {[%emt 0:00:00]} Rg6 {[%emt 0:07:09]} 22. Nd5 {[%emt 0:00:00]} Bd4 {[%emt 0:00:27][%cal Oa8d8]} 23. Ne7 {[%emt 0:11:00]} (23. Rc7 $16) 23... Ra6 $11 {[%emt 0:03:57]} 24. Rc7 {[%emt 0:00:00]} Rxa2 {[%emt 0:00:59]} 25. b4 {[%emt 0:01:00][%cal Oe7f5]} ({Much worse is} 25. Rxb7 Rxb2 26. Rxb2 Bxb2 $11) 25... Bb6 {[%emt 0:03:12]} (25... Rb2 $11) 26. Rxb7 $14 {[%emt 0:00:00]} Rd8 {[%emt 0:00:28] Wards off Nd5} (26... Kg7 $14) 27. Nc6 $36 {[%emt 0:01:00][%csl LRd8,LRe5,LRf7][%mdl 2112] Discovered Attack, Double Attack. Black is under strong pressure.} Rd5 {[%emt 0:00:51]} 28. Rxf7 {[%emt 0:00:00]} Rc2 {[%emt 0:00:20]} 29. Ne7 {[%emt 0:00:00]} ({White should try} 29. Nxa7 $18 Rxd3 30. Rb7) 29... Rxd3 {[%emt 0:00:35] [#]} 30. Nf5 $1 {[%emt 0:00:00][%cal Rf7f8]} Rd8 {[%emt 0:00:04] Against Rf8+} 31. Nh6 {[%emt 0:02:00]} ({White should play} 31. g4 $16) 31... e4 {[%emt 0:00:56] ...e3 is the strong threat.} 32. Ng4 {[%emt 0:00:00]} Rc7 {[%emt 0:00:33]} 33. Rf4 {[%emt 0:00:18]} Rd4 {[%emt 0:00:27]} 34. Re1 {[%emt 0:00:28]} (34. Ne3 $16) 34... Rxb4 {[%emt 0:00:35]} 35. Rfxe4 {[%emt 0:00:28]} Rxe4 {[%emt 0:00:25]} 36. Rxe4 $11 {[%emt 0:00:02][%mdl 4096] Endgame KRB-KRN} Kg7 {[%emt 0:00:36]} 37. Kh2 {[%emt 0:00:16]} a5 {[%emt 0:00:26]} 38. f4 {[%emt 0:00:36]} h5 {[%emt 0:00:31]} 39. Ne5 {[%emt 0:00:29]} Kf6 {[%emt 0:00:29] [#]} (39... h4 $11) 40. Nc4 {[%emt 0:01:07]} (40. g4 $1 $16) 40... Bf2 {[%emt 0:00:32] The position is equal.} 41. g4 {[%emt 0:00:00]} hxg4 {[%emt 0:00:00]} 42. hxg4 {[%emt 0:00:00] Black must now prevent Kg2.} a4 {[%emt 0:00:00]} 43. Na3 {[%emt 0:14:03]} Ra7 {[%emt 0:02:57]} 44. Rc4 {[%emt 0:00:58]} Ra5 {[%emt 0:08:10]} 45. Rc6+ {[%emt 0:02:44]} Ke7 {[%emt 0:03:28]} 46. f5 {[%emt 0:10:35]} Kd7 {[%emt 0:05:21]} 47. Rc3 {[%emt 0:04:42]} Rd5 {[%emt 0:07:30]} 48. Kg2 {[%emt 0:03:31]} Bc5 {[%emt 0:00:55]} 49. Kg3 {[%emt 0:03:01]} Bb4 {[%emt 0:07:37]} 50. Rf3 {[%emt 0:00:57]} Rd1 {[%emt 0:03:21]} 51. Kf4 {[%emt 0:02:55]} Ke7 {[%emt 0:01:36]} 52. Kg5 {[%emt 0:00:41] aiming for Kg6.} Kf7 {[%emt 0:00:23]} 53. Kf4 {[%emt 0:02:23]} Bd6+ {[%emt 0:01:25]} 54. Ke4 {[%emt 0:00:42]} Rg1 {[%emt 0:00:54]} 55. Kd5 {[%emt 0:00:30]} Bb8 {[%emt 0:02:09]} 56. Nc4 {[%emt 0:00:23]} Rxg4 {[%emt 0:00:50]} 57. Ne5+ {[%emt 0:00:09]} Bxe5 {[%emt 0:00:04]} 58. Kxe5 {[%emt 0:00:03] KR-KR} Rg1 {[%emt 0:00:40]} 59. Ra3 {[%emt 0:00:19]} Re1+ {[%emt 0:00:05]} 60. Kf4 {[%emt 0:00:14]} Rf1+ {[%emt 0:00:17]} 61. Ke5 {[%emt 0:00:05]} Re1+ {[%emt 0:00:04]} 62. Kf4 {[%emt 0:00:03]} Rh1 {[%emt 0:00:04]} 63. Kg5 {[%emt 0:00:09]} Rg1+ {[%emt 0:00:07]} 64. Kf4 {[%emt 0:00:06]} Rf1+ {[%emt 0:00:04]} 65. Ke5 {[%emt 0:00:37] White really could win this.   Weighted Error Value: White=0.14 (very precise) /Black=0.12 (very precise)} 1/2-1/2

[Event "4NCL 2022-2023"]
[Site "Daventry"]
[Date "2023.02.11"]
[Round "5.31"]
[White "Palliser, Richard J D"]
[Black "Stoyanov, Viktor"]
[Result "1/2-1/2"]
[ECO "D85"]
[WhiteElo "2397"]
[BlackElo "2243"]
[Annotator "TA"]
[PlyCount "191"]
[EventDate "2022.10.20"]
[EventType "team-tourn"]
[EventCountry "ENG"]
[SourceTitle "playchess.com"]
[Source "ChessBase"]
[SourceQuality "1"]
[TimeControl "40/6000+30:2400+30"]

{[%evp 20,190,51,50,64,33,56,-12,-25,-10,-11,-6,40,30,37,0,0,0,33,33,69,69,83,79,121,95,97,95,81,60,70,50,64,56,137,137,138,138,131,113,139,138,140,122,131,92,162,145,202,183,328,307,306,292,312,276,286,161,135,135,135,135,161,150,268,439,342,313,408,403,1000,996,1191,1206,1106,712,662,418,811,818,818,818,818,793,742,662,547,460,1684,158,158,161,161,142,154,227,1054,768,726,690,569,396,473,178,178,178,178,178,178,178,178,178,178,178,178,178,178,178,178,178,178,178,178,0,0,0,0,0,0,0,0,0,8,8,178,178,178,178,178,178,178,178,178,178,178,178,178,178,178,178,178,178,185,178,185,185,185,185,185,185,29985,29984,29984,29975,7210,0,0,0,29984,29978,29975,0,0]} 1. d4 {[%emt 0:00:05]} Nf6 {[%emt 0:01:36]} 2. Nf3 {[%emt 0:00:08]} g6 {[%emt 0:00:32]} 3. c4 {[%emt 0:04:25]} Bg7 {[%emt 0:00:16]} 4. Nc3 {[%emt 0:00:06]} d5 {[%emt 0:00:27]} 5. cxd5 {[%emt 0:00:11]} Nxd5 {[%emt 0:00:08]} 6. e4 {[%emt 0:01:46]} Nxc3 {[%emt 0:00:08]} 7. bxc3 {[%emt 0:00:04]} c5 {[%emt 0:00:10]} 8. Rb1 {[%emt 0:00:38]} O-O {[%emt 0:01:56]} 9. Be2 {[%emt 0:00:18]} Nc6 {[%emt 0:04:29]} 10. d5 {[%emt 0:00:16]} Na5 {[%emt 0:08:50]} 11. c4 {[%emt 0:13:44]} b6 {[%emt 0:09:31] D85: Exchange Grünfeld: Unusual White 7th moves and lines with 7 Nf3.} 12. Bg5 {[%emt 0:10:18]} Bg4 {[%emt 0:05:32] [#]} 13. Nd2 $146 {[%emt 0:01:17]} ({White should play} 13. Qc2 $14) ({Predecessor:} 13. Rc1 h6 14. Bh4 Bxf3 15. Bxf3 Qe8 16. O-O e5 17. dxe6 Qxe6 18. e5 Rae8 19. Bd5 Qxe5 {1-0 Eriksson,J (2364)-Dzevlan,M (2414) Stockholm IM 2000 (1)}) 13... Bxe2 $11 {[%emt 0:01:36]} 14. Qxe2 {[%emt 0:00:05]} Qd7 {[%emt 0:02:13]} 15. O-O {[%emt 0:05:38]} e5 {[%emt 0:06:06]} (15... e6 $11) 16. Rb5 {[%emt 0:27:28]} Nb7 {[%emt 0:05:20]} 17. Nb1 {[%emt 0:01:23]} Nd6 {[%emt 0:01:30]} 18. Rb3 {[%emt 0:00:05]} f5 {[%emt 0:09:49]} (18... f6 $5 {[%cal Rf6g5]} 19. Bc1 Qa4 $11) 19. Nc3 {[%emt 0:09:59]} Rae8 {[%emt 0:15:32]} 20. f3 {[%emt 0:01:39]} h6 {[%emt 0:09:56]} 21. Bd2 {[%emt 0:04:20]} g5 {[%emt 0:00:57]} 22. a4 {[%emt 0:20:10][%cal Oa4a5]} fxe4 {[%emt 0:09:19]} 23. fxe4 {[%emt 0:00:11]} Rxf1+ {[%emt 0:00:15]} 24. Kxf1 {[%emt 0:00:18]} Rf8+ {[%emt 0:03:00]} 25. Ke1 {[%emt 0:02:03]} Rf6 {[%emt 0:03:26]} 26. Nb5 {[%emt 0:00:52]} Nxb5 {[%emt 0:02:24]} (26... Nb7 $14) 27. axb5 $16 {[%emt 0:01:04]} a5 {[%emt 0:00:17]} 28. bxa6 {[%emt 0:00:05]} Qa4 {[%emt 0:00:09]} 29. Rf3 {[%emt 0:00:22]} Qxa6 {[%emt 0:00:54]} 30. Rxf6 {[%emt 0:00:11]} Bxf6 {[%emt 0:00:01][%mdl 4096] Endgame KQB-KQB} 31. h3 {[%emt 0:05:19]} Qa4 {[%emt 0:01:17]} 32. Qd3 {[%emt 0:00:23]} Qd7 {[%emt 0:02:44]} (32... Qa1+ $16 33. Kf2 Qb2) 33. Qb3 {[%emt 0:00:38]} Bd8 {[%emt 0:01:06]} (33... Qa7 $16 34. Kf2 Bg7) 34. Qg3 $18 {[%emt 0:00:22] aiming for Bc3.} Qd6 {[%emt 0:01:39]} (34... Bf6 $142 35. Qb3 Qa7) 35. h4 {[%emt 0:01:00]} Qf6 {[%emt 0:00:58]} 36. Qg4 {[%emt 0:00:38]} Be7 {[%emt 0:00:30]} 37. Ke2 {[%emt 0:00:16]} Kg7 {[%emt 0:01:47]} 38. h5 {[%emt 0:00:06]} (38. Bc3 $142) 38... Qf7 {[%emt 0:00:40]} 39. g3 {[%emt 0:00:10]} Bd6 {[%emt 0:00:33]} 40. Bc3 {[%emt 0:00:19]} Qe8 {[%emt 0:00:16]} 41. Kd3 {[%emt 0:40:57]} b5 {[%emt 0:00:00]} (41... Bb8 $16 42. Kd2 Bc7) 42. cxb5 {[%emt 0:00:00]} Qxb5+ {[%emt 0:00:00]} 43. Kd2 {[%emt 0:00:00] Qe6 would be deadly.} Qe8 {[%emt 0:00:00]} 44. Qf5 {[%emt 0:00:00]} c4 {[%emt 0:00:00]} (44... Bb8 $142 45. Kd3 Bd6) 45. g4 {[%emt 0:00:00]} Kg8 {[%emt 0:02:36]} 46. Qf6 {[%emt 0:00:00][%csl LRd6,LRh6]} Qf8 {[%emt 0:02:16]} 47. Qe6+ {[%emt 0:00:00]} Kh7 {[%emt 0:00:45]} 48. Ke2 {[%emt 0:00:00]} (48. Bxe5 Qf2+ 49. Kd1 (49. Kc1 Qf1+ 50. Kb2 Qe2+ 51. Kc3 Qf3+ 52. Kxc4 Qe2+ 53. Kd4 Qd2+ 54. Kc4 Qe2+ 55. Kd4 Qd2+ 56. Kc4 Qe2+ $11) 49... Qf3+ 50. Kc1 Qf1+ 51. Kc2 Qe2+ 52. Kc3 Qf3+ 53. Kxc4 Qe2+ 54. Kd4 Qd2+ 55. Kc4 Qe2+ 56. Kd4 Qd2+ 57. Kc4 Qe2+ $11) 48... Qf4 {[%emt 0:01:48]} (48... Bb8 $142 49. Bxe5 Bxe5) 49. Qg6+ {[%emt 0:00:00][%mdl 64] Deflection} (49. Qxd6 Qxe4+ 50. Kf2 Qc2+ 51. Kg1 Qc1+ 52. Kh2 Qc2+ 53. Kh1 Qc1+ 54. Kh2 Qc2+ 55. Kh1 Qc1+ 56. Kh2 $11) 49... Kh8 {[%emt 0:00:01]} 50. Qxh6+ {[%emt 0:00:00]} (50. Qxd6 Qxe4+ 51. Kf2 Qc2+ 52. Kg1 Qd1+ 53. Kh2 (53. Kf2 Qc2+ 54. Kg1 Qd1+ 55. Kh2 Qe2+ 56. Kg3 Qd3+ 57. Kh2 Qe2+ 58. Kh3 Qf3+ 59. Kh2 Qf2+ 60. Kh3 Qf3+ 61. Kh2 Qf2+ 62. Kh3 Qf3+ $11) 53... Qc2+ 54. Kg1 Qd1+ 55. Kh2 (55. Kf2 Qc2+ 56. Kg1 $11) 55... Qc2+ 56. Kh1 Qc1+ 57. Kh2 Qc2+ $11) 50... Kg8 {[%emt 0:00:01]} 51. Qg6+ {[%emt 0:00:00]} (51. Qxd6 Qxe4+ 52. Kd2 Qd3+ 53. Ke1 Qxc3+ 54. Ke2 Qd3+ 55. Kf2 Qd4+ 56. Ke1 Qe4+ 57. Kf2 Qd4+ 58. Ke1 Qe4+ 59. Kf2 Qd4+ $11) 51... Kh8 {[%emt 0:00:06]} 52. Qf5 {[%emt 0:00:00]} (52. Qxd6 Qxe4+ 53. Kd2 Qd3+ 54. Ke1 Qxc3+ 55. Ke2 Qd3+ 56. Kf2 Qd4+ 57. Kf1 Qd3+ 58. Kg2 Qd2+ 59. Kh3 Qd3+ 60. Kh2 Qd2+ 61. Kh3 Qd3+ 62. Kh2 Qd2+ 63. Kh3 $11) 52... Qh2+ {[%emt 0:00:19]} 53. Qf2 {[%emt 0:00:00]} Qh1 {[%emt 0:03:12] [#]} (53... Qf4 $142 54. Qxf4 gxf4) 54. Bxe5+ $2 {[%emt 0:00:00]} Bxe5 $16 {[%emt 0:00:17]} 55. Qf8+ {[%emt 0:00:00]} Kh7 {[%emt 0:00:11] Threatens to win with ...Qg2+.} 56. Qf5+ {[%emt 0:00:00]} Kg8 {[%emt 0:00:12] Hoping for ...Qh2+.} 57. Qxe5 {[%emt 0:00:00] KQ-KQ} (57. Qe6+ $16 Kh7 58. Qxe5) 57... Qg2+ $2 {[%emt 0:00:36]} (57... Qc1 58. Qe8+ Kh7 59. Qf7+ Kh8 60. Qf6+ Kh7 61. Qg6+ Kh8 62. Qf6+ Kg8 63. Qe6+ Kh7 64. Qf5+ Kh8 65. Qf8+ Kh7 66. Qf7+ Kh8 67. Qf8+ Kh7 68. Qf7+) 58. Ke1 {[%emt 0:00:00] Black must now prevent d6.} c3 {[%emt 0:01:51]} 59. Qxg5+ {[%emt 0:00:00]} (59. Qxc3 Qxe4+ 60. Kd2 Qxg4 $16) 59... Kh8 {[%emt 0:02:45]} 60. Qf6+ {[%emt 0:00:00]} Kg8 {[%emt 0:00:12]} 61. Qxc3 $2 {[%emt 0:00:00]} (61. Qe6+ Kh8 62. Qe8+ Kg7 63. Qg6+ Kf8 64. Qf5+ Kg8 65. Qg5+ Kh8 66. Qf6+ Kg8 67. Qe6+ Kh8 68. Qh6+ Kg8 69. Qg5+) 61... Qxe4+ $18 {[%emt 0:00:05]} 62. Kf2 {[%emt 0:00:00] Qc8+ would kill now.} Qxd5 {[%emt 0:00:13]} 63. Kg3 {[%emt 0:01:44]} ({But not} 63. Qc8+ Kg7 64. Qc7+ Kh8 65. Qc8+ Kg7 66. Qc3+ Kg8 $18) 63... Qd6+ {[%emt 0:01:04]} 64. Kh3 {[%emt 0:00:09]} Qf4 {[%emt 0:00:42]} 65. Qc8+ {[%emt 0:00:44]} Kg7 {[%emt 0:00:06]} 66. Qd7+ {[%emt 0:00:13]} Kh6 {[%emt 0:01:54]} 67. Qe6+ {[%emt 0:00:05]} Kg7 {[%emt 0:00:06]} 68. Qg6+ {[%emt 0:01:26]} Kh8 {[%emt 0:00:07][%cal Of4h2]} 69. Qd3 {[%emt 0:02:12]} Kg7 {[%emt 0:00:10]} 70. Qg3 {[%emt 0:04:03]} Qf1+ {[%emt 0:00:27]} 71. Kh4 $2 {[%emt 0:01:48]} (71. Kh2 $1 $18) 71... Qh1+ $11 {[%emt 0:00:17]} 72. Kg5 {[%emt 0:00:09] White wants to mate with Qc7+.} Qd5+ {[%emt 0:00:07]} 73. Kf4 {[%emt 0:00:20] And now Qc3+ would win.} Qd6+ {[%emt 0:00:15]} 74. Kf3 {[%emt 0:00:03]} Qd3+ {[%emt 0:00:07]} 75. Kg2 {[%emt 0:00:04]} Qe2+ $1 {[%emt 0:00:08]} 76. Kh1 {[%emt 0:00:32]} ({Not} 76. Kh3 Qf1+ 77. Kh2 Qe2+ 78. Qg2 Qe3 79. Qb2+ Kg8 $18) 76... Qf1+ $2 {[%emt 0:01:36]} (76... Kh7 $11 77. Qf4 Kg7 78. Qg5+ Kh7) 77. Kh2 $18 {[%emt 0:00:04]} Qe2+ {[%emt 0:00:53] [#]} 78. Qg2 $1 {[%emt 0:00:17]} Qe5+ {[%emt 0:00:27]} 79. Kh3 {[%emt 0:00:10]} Qe3+ {[%emt 0:00:12] [#]} 80. Qg3 $1 {[%emt 0:00:15]} Qe4 {[%emt 0:01:12]} 81. Qc3+ {[%emt 0:00:25]} Kh7 {[%emt 0:00:34]} 82. Kg3 {[%emt 0:00:27]} Qd5 {[%emt 0:01:17]} 83. Qc7+ {[%emt 0:00:54]} Kh6 {[%emt 0:04:10]} 84. Qb6+ {[%emt 0:00:05]} Kg7 {[%emt 0:00:08]} 85. Qe3 {[%emt 0:00:08]} Qd6+ {[%emt 0:01:16]} 86. Qf4 {[%emt 0:00:15]} Qd1 {[%emt 0:02:10]} 87. Qe5+ {[%emt 0:02:10]} Kh7 {[%emt 0:02:17]} 88. Kh4 {[%emt 0:01:37]} Qh1+ {[%emt 0:01:13]} 89. Kg5 {[%emt 0:00:07] Threatening mate with Qe7+.} Qd1 $2 {[%emt 0:00:19]} (89... Qb7 $18 90. h6 Kg8) 90. Qf5+ {[%emt 0:01:19]} Kg8 {[%emt 0:00:13]} 91. Kh6 {[%emt 0:01:15]} Qd4 {[%emt 0:00:17]} 92. Qg6+ $2 {[%emt 0:00:23]} ({White should try} 92. Qe6+ $18 Kf8 93. Qc8+ Kf7 94. Qc7+ Ke6 95. Qg7) 92... Kf8 $11 {[%emt 0:00:08]} 93. g5 {[%emt 0:00:19] Intending Qf6+ and mate.} Qh8+ $2 {[%emt 0:00:17][%mdl 8192]} (93... Qd7 $11 94. Qf6+ Kg8 95. Qg6+ Kf8) 94. Qh7 {[%emt 0:00:04]} Qe5 {[%emt 0:00:04]} 95. Qd7 {[%emt 0:01:10]} Qe6+ $1 {[%emt 0:00:57]} 96. Qxe6 {[%emt 0:01:51] An exciting game.   Weighted Error Value: White=0.34/Black=0.21 (precise)} 1/2-1/2